bitfinex/quotes_BTCUSD_20250727
["timestamp","ask_amount","ask_price","bid_price","bid_amount"]
[1753614987313,0.16327006,118360.0,118350.0,0.16877507]
[1753614987504,0.16327006,118360.0,118350.0,0.30049507]
[1753615021870,0.16327006,118360.0,118350.0,0.26939507]
[1753615022086,0.16327006,118360.0,118350.0,0.28479507]
[1753615022315,0.18623006,118360.0,118350.0,0.24096507]
[1753615023232,0.18623006,118360.0,118350.0,0.10924507]
[1753615023524,0.18623006,118360.0,118350.0,0.24260507]
[1753615023764,0.21803006,118360.0,118350.0,0.24260507]
[1753615024007,0.21803006,118360.0,118350.0,0.15905077]
[1753615028494,0.61803006,118360.0,118350.0,0.15905077]
[1753615031365,0.20143006,118360.0,118350.0,0.13336]
[1753615031582,0.18623006,118360.0,118350.0,0.13336]
[1753615031795,0.18623006,118360.0,118350.0,0.13634]
[1753615032005,0.58623006,118360.0,118350.0,0.13634]
[1753615032214,0.58623006,118360.0,118350.0,0.16117]
[1753615032701,0.58623006,118360.0,118350.0,0.02781]
[1753615034039,0.56327006,118360.0,118350.0,0.02781]
[1753615035021,0.16327006,118360.0,118350.0,0.02781]
[1753615035488,0.56327006,118360.0,118350.0,0.02781]
[1753615036197,0.56327006,118360.0,118350.0,0.0299]
[1753615038474,0.16327006,118360.0,118350.0,0.0299]
[1753615038921,0.56327006,118360.0,118350.0,0.0299]
[1753615041648,0.16327006,118360.0,118350.0,0.0299]
[1753615042335,0.56327006,118360.0,118350.0,0.0299]
[1753615042717,0.57842422,118360.0,118350.0,0.0299]
[1753615042933,0.58687309,118360.0,118350.0,0.0299]
[1753615046046,0.72067309,118360.0,118350.0,0.0299]
[1753615048352,0.72063309,118360.0,118350.0,0.0299]
[1753615052159,0.72063309,118360.0,118350.0,0.0465]
[1753615057905,0.72063309,118360.0,118350.0,0.00298]
[1753615058132,0.17743965,118350.0,118340.0,0.20958988]
[1753615058503,0.17743965,118350.0,118340.0,0.29406718]
[1753615058744,0.17743965,118350.0,118340.0,0.29613718]
[1753615058943,0.57743965,118350.0,118340.0,0.31143718]
[1753615059478,0.17743965,118350.0,118340.0,0.31143718]
[1753615066028,0.17743965,118350.0,118340.0,0.17783718]
[1753615072604,0.20051965,118350.0,118340.0,0.02539894]
[1753615072803,0.20051965,118350.0,118340.0,0.1685018]
[1753615073017,0.20051965,118350.0,118340.0,0.13448]
[1753615073387,0.20051965,118350.0,118340.0,0.13771]
[1753615073960,0.20051965,118350.0,118340.0,0.13775]
[1753615074589,0.20051965,118350.0,118340.0,0.16298876]
[1753615074798,0.20051965,118350.0,118340.0,0.18579876]
[1753615076018,0.20051965,118350.0,118340.0,0.19442162]
[1753615076334,0.17743965,118350.0,118340.0,0.19442162]
[1753615077788,0.17743965,118350.0,118340.0,0.19645162]
[1753615077911,0.17743965,118350.0,118340.0,0.21225162]
[1753615078838,0.17743965,118350.0,118340.0,0.22865162]
[1753615080277,0.17743965,118350.0,118340.0,0.19442162]
[1753615080740,0.17743965,118350.0,118340.0,0.16918286]
[1753615081170,0.17743965,118350.0,118340.0,0.17121286]
[1753615082719,0.17743965,118350.0,118340.0,0.18701286]
[1753615092366,0.17743965,118350.0,118340.0,0.17121286]
[1753615093421,0.17743965,118350.0,118340.0,0.16918286]
[1753615095742,0.17743965,118350.0,118340.0,0.17121286]
[1753615097039,0.28226221,118350.0,118340.0,0.14314286]
[1753615097482,0.28226221,118350.0,118340.0,0.13452]
[1753615097905,0.20194965,118350.0,118340.0,0.13756]
[1753615098119,0.20194965,118350.0,118340.0,0.16037]
[1753615098329,0.20194965,118350.0,118340.0,0.13756]
[1753615098527,0.20194965,118350.0,118340.0,0.00304]
[1753615098734,0.20194965,118350.0,118340.0,0.13752]
[1753615098955,0.21150707,118350.0,118340.0,0.13752]
[1753615099579,0.20194965,118350.0,118340.0,0.13752]
[1753615101640,0.20194965,118350.0,118340.0,0.16033]
[1753615103234,0.17743965,118350.0,118340.0,0.16033]
[1753615103881,0.17743965,118350.0,118340.0,0.16236]
[1753615105146,0.17743965,118350.0,118340.0,0.17816]
[1753615110869,0.31151965,118350.0,118340.0,0.04368]
[1753615111076,0.38460091,118350.0,118340.0,0.04368]
[1753615111716,0.31151965,118350.0,118340.0,0.04368]
[1753615117167,0.31151965,118350.0,118340.0,0.02788]
[1753615118955,0.57745464,118340.0,118330.0,0.69760409]
[1753615119189,0.57745464,118340.0,118330.0,0.78418986]
[1753615120440,0.57745464,118340.0,118330.0,0.78518986]
[1753615120690,0.57745464,118340.0,118330.0,0.78718986]
[1753615120921,0.57745464,118340.0,118330.0,0.56863256]
[1753615122030,0.57745464,118340.0,118330.0,0.55223256]
[1753615124575,0.57745464,118340.0,118330.0,0.56733256]
[1753615136618,0.57745464,118340.0,118330.0,0.53693256]
[1753615136976,0.60111464,118340.0,118330.0,0.51030256]
[1753615137180,0.60111464,118340.0,118330.0,0.50736256]
[1753615138477,0.60111464,118340.0,118330.0,0.51034256]
[1753615139217,0.60111464,118340.0,118330.0,0.53454256]
[1753615139633,0.57745464,118340.0,118330.0,0.53454256]
[1753615141534,0.71069464,118340.0,118330.0,0.53454256]
[1753615142364,0.76148893,118340.0,118330.0,0.50736256]
[1753615142565,0.77728893,118340.0,118330.0,0.50736256]
[1753615142914,0.80267493,118340.0,118330.0,0.50736256]
[1753615143528,0.77728893,118340.0,118330.0,0.50736256]
[1753615143738,0.77728893,118340.0,118330.0,0.50636256]
[1753615143939,0.77728893,118340.0,118330.0,0.50436256]
[1753615144141,0.77828893,118340.0,118330.0,0.50436256]
[1753615144660,0.76755464,118340.0,118330.0,0.50436256]
[1753615145734,0.75175464,118340.0,118330.0,0.50436256]
[1753615146164,0.73535464,118340.0,118330.0,0.50436256]
[1753615146383,0.73535464,118340.0,118330.0,0.50734256]
[1753615146618,0.73535464,118340.0,118330.0,0.53154256]
[1753615147741,0.71169464,118340.0,118330.0,0.53154256]
[1753615148674,0.79617194,118340.0,118330.0,0.53154256]
[1753615149116,0.81983194,118340.0,118330.0,0.53154256]
[1753615149356,0.41983194,118340.0,118330.0,0.53154256]
[1753615149583,0.45173194,118340.0,118330.0,0.50436256]
[1753615150605,0.35155464,118340.0,118330.0,0.50436256]
[1753615151020,0.36725464,118340.0,118330.0,0.50436256]
[1753615152885,0.35155464,118340.0,118330.0,0.50436256]
[1753615153113,0.33535464,118340.0,118330.0,0.50734256]
[1753615153361,0.33535464,118340.0,118330.0,0.53154256]
[1753615153577,0.31169464,118340.0,118330.0,0.53154256]
[1753615157531,0.31169464,118340.0,118330.0,0.53355256]
[1753615164067,0.33535464,118340.0,118330.0,0.50734256]
[1753615164296,0.36705464,118340.0,118330.0,0.50436256]
[1753615164527,0.41748913,118340.0,118330.0,0.50436256]
[1753615165694,0.36705464,118340.0,118330.0,0.50436256]
[1753615167193,0.38450366,118340.0,118330.0,0.50436256]
[1753615168453,0.38450366,118340.0,118330.0,0.50735256]
[1753615170110,0.38450366,118340.0,118330.0,0.53178256]
[1753615170341,0.36865525,118340.0,118330.0,0.53178256]
[1753615170844,0.34499525,118340.0,118330.0,0.53178256]
[1753615171259,0.4019168,118340.0,118330.0,0.53178256]
[1753615172096,0.34499525,118340.0,118330.0,0.53178256]
[1753615172834,0.34499525,118340.0,118330.0,0.53387256]
[1753615174229,0.34499525,118340.0,118330.0,0.53178256]
[1753615174431,0.37669525,118340.0,118330.0,0.53178256]
[1753615175266,0.36019525,118340.0,118330.0,0.53387256]
[1753615175901,0.34499525,118340.0,118330.0,0.53387256]
[1753615178534,0.35892834,118340.0,118330.0,0.53387256]
[1753615178769,0.34307675,118340.0,118330.0,0.53387256]
[1753615178975,0.35893195,118340.0,118330.0,0.53387256]
[1753615179602,0.34499886,118340.0,118330.0,0.53387256]
[1753615185098,0.35887223,118340.0,118330.0,0.53387256]
[1753615187763,0.35887202,118340.0,118330.0,0.53387256]
[1753615188621,0.35887202,118340.0,118330.0,0.53178256]
[1753615189034,0.35777202,118340.0,118330.0,0.53178256]
[1753615190796,0.35777202,118340.0,118330.0,0.53387256]
[1753615191921,0.44224932,118340.0,118330.0,0.53387256]
[1753615193469,0.52672662,118340.0,118330.0,0.53387256]
[1753615195479,0.49599932,118340.0,118330.0,0.50735256]
[1753615196138,0.49599932,118340.0,118330.0,0.53200256]
[1753615196798,0.47294932,118340.0,118330.0,0.53200256]
[1753615196992,0.47294932,118340.0,118330.0,0.50436256]
[1753615196993,0.45734932,118340.0,118330.0,0.50436256]
[1753615197197,0.19491865,118330.0,118320.0,0.1277]
[1753615197421,0.19491865,118330.0,118320.0,0.13028531]
[1753615197642,0.21670534,118330.0,118320.0,0.13028531]
[1753615198401,0.21670444,118330.0,118320.0,0.13028531]
[1753615199250,0.21670444,118330.0,118320.0,0.13128531]
[1753615199454,0.22462436,118330.0,118320.0,0.13128531]
[1753615201152,0.39357896,118330.0,118320.0,0.13128531]
[1753615203761,0.41896996,118330.0,118320.0,0.13128531]
[1753615204450,0.41105004,118330.0,118320.0,0.13128531]
[1753615205560,0.32657274,118330.0,118320.0,0.13128531]
[1753615208081,0.32656693,118330.0,118320.0,0.13128531]
[1753615214249,0.33448188,118330.0,118320.0,0.13128531]
[1753615219134,0.35753188,118330.0,118320.0,0.12918531]
[1753615219543,0.33448188,118330.0,118320.0,0.12918531]
[1753615219752,0.41895918,118330.0,118320.0,0.12918531]
[1753615219957,0.41896286,118330.0,118320.0,0.12918531]
[1753615220566,0.41896286,118330.0,118320.0,0.13128531]
[1753615220771,0.33448556,118330.0,118320.0,0.13128531]
[1753615221432,0.40753556,118330.0,118320.0,0.10453531]
[1753615221653,0.40753556,118330.0,118320.0,0.10148531]
[1753615222565,0.40753556,118330.0,118320.0,0.10453531]
[1753615222788,0.39367721,118330.0,118320.0,0.10453531]
[1753615223018,0.45510451,118330.0,118320.0,0.12918531]
[1753615223461,0.46896596,118330.0,118320.0,0.12918531]
[1753615223687,0.4531257,118330.0,118320.0,0.12918531]
[1753615223905,0.43926425,118330.0,118320.0,0.12918531]
[1753615224122,0.46896736,118330.0,118320.0,0.12918531]
[1753615224350,0.46896736,118330.0,118320.0,0.13128531]
[1753615226013,0.46896736,118330.0,118320.0,0.12918531]
[1753615226275,0.49224736,118330.0,118320.0,0.10148531]
[1753615226452,0.49225552,118330.0,118320.0,0.10148531]
[1753615226671,0.46897552,118330.0,118320.0,0.12876531]
[1753615231910,0.38449822,118330.0,118320.0,0.12876531]
[1753615232146,0.38449822,118330.0,118320.0,0.13075531]
[1753615233789,0.38450623,118330.0,118320.0,0.13075531]
[1753615235808,0.38452007,118330.0,118320.0,0.13075531]
[1753615236040,0.38452007,118330.0,118320.0,0.14685531]
[1753615236299,0.38452007,118330.0,118320.0,0.16185531]
[1753615236550,0.46692007,118330.0,118320.0,0.16185531]
[1753615236803,0.37451343,118330.0,118320.0,0.16185531]
[1753615237088,0.21672243,118330.0,118320.0,0.16185531]
[1753615237356,0.34317632,118330.0,118320.0,0.16185531]
[1753615237579,0.34313632,118330.0,118320.0,0.16185531]
[1753615238447,0.42761362,118330.0,118320.0,0.16185531]
[1753615238635,0.42760389,118330.0,118320.0,0.16185531]
[1753615240173,0.32727865,118330.0,118320.0,0.16185531]
[1753615245107,0.48503595,118330.0,118320.0,1e-08]
[1753615245321,0.51473615,118330.0,118320.0,1e-08]
[1753615245747,0.51473615,118330.0,118320.0,0.00322001]
[1753615245960,0.51684915,118330.0,118320.0,0.02728001]
[1753615246378,0.19493366,118320.0,118310.0,0.0163]
[1753615246561,0.19493366,118320.0,118310.0,0.01829]
[1753615247024,0.19493366,118320.0,118310.0,0.03479]
[1753615247669,0.19493366,118320.0,118310.0,0.03579]
[1753615248102,0.19493366,118320.0,118310.0,0.03779]
[1753615248285,0.19493366,118320.0,118310.0,0.06507]
[1753615249421,0.2488048,118320.0,118310.0,0.06507]
[1753615251464,0.19493366,118320.0,118310.0,0.06507]
[1753615255046,0.21888366,118320.0,118310.0,0.06507]
[1753615259587,0.19493366,118320.0,118310.0,0.06507]
[1753615260971,0.21888366,118320.0,118310.0,0.06507]
[1753615262551,0.17748464,118320.0,118310.0,0.06507]
[1753615262794,0.30976464,118320.0,118310.0,0.06507]
[1753615263022,0.17748464,118320.0,118310.0,0.06507]
[1753615263245,0.30976464,118320.0,118310.0,0.06507]
[1753615264539,0.33515464,118320.0,118310.0,0.06507]
[1753615274482,0.35910464,118320.0,118310.0,0.06507]
[1753615299138,0.22682464,118320.0,118310.0,0.06507]
[1753615299355,0.35894464,118320.0,118310.0,0.06507]
[1753615299784,0.20287464,118320.0,118310.0,0.06507]
[1753615299998,0.30960464,118320.0,118310.0,0.06507]
[1753615300220,0.17748464,118320.0,118310.0,0.1495473]
[1753615319431,0.17748464,118320.0,118310.0,0.1254873]
[1753615320278,0.17748464,118320.0,118310.0,0.1488173]
[1753615321599,0.20032464,118320.0,118310.0,0.1488173]
[1753615322286,0.20230464,118320.0,118310.0,0.1488173]
[1753615322528,0.20527464,118320.0,118310.0,0.003]
[1753615329342,0.20230464,118320.0,118310.0,0.003]
[1753615330838,0.20527464,118320.0,118310.0,0.003]
[1753615334925,0.20230464,118320.0,118310.0,0.003]
[1753615342738,0.20230464,118320.0,118310.0,0.0182]
[1753615342946,0.20230464,118320.0,118310.0,0.0332]
[1753615343204,0.20230464,118320.0,118310.0,0.03815]
[1753615343435,0.20230464,118320.0,118310.0,0.06148]
[1753615347086,0.20230464,118320.0,118310.0,0.03815]
[1753615347569,0.24540671,118320.0,118310.0,0.03815]
[1753615347820,0.20230464,118320.0,118310.0,0.0182]
[1753615349399,0.20230464,118320.0,118310.0,0.0343]
[1753615352708,0.20230464,118320.0,118310.0,0.03728]
[1753615355773,0.20234464,118320.0,118310.0,0.03728]
[1753615359477,0.20234464,118320.0,118310.0,0.03939]
[1753615372880,0.33398464,118320.0,118310.0,0.03939]
[1753615374166,0.20234464,118320.0,118310.0,0.03939]
[1753615374363,0.33398464,118320.0,118310.0,0.03939]
[1753615375506,0.20234464,118320.0,118310.0,0.03939]
[1753615375944,0.20234464,118320.0,118310.0,0.06375]
[1753615376645,0.20234464,118320.0,118310.0,0.03939]
[1753615376861,0.20234464,118320.0,118310.0,0.03641]
[1753615381304,0.20234464,118320.0,118310.0,0.0343]
[1753615383341,0.25081508,118320.0,118310.0,0.0343]
[1753615383570,0.20234464,118320.0,118310.0,0.0343]
[1753615391260,0.20234464,118320.0,118310.0,0.03752]
[1753615392780,0.20234464,118320.0,118310.0,0.03956]
[1753615409741,0.22128464,118320.0,118310.0,0.003]
[1753615410884,0.20538464,118320.0,118310.0,0.003]
[1753615413137,0.21369364,118320.0,118310.0,0.003]
[1753615413648,0.20538464,118320.0,118310.0,0.003]
[1753615415043,0.20234464,118320.0,118310.0,0.003]
[1753615425724,0.20234464,118320.0,118310.0,0.0181]
[1753615428307,0.20234464,118320.0,118310.0,0.03972]
[1753615438798,0.22652419,118320.0,118310.0,0.03972]
[1753615439251,0.22652427,118320.0,118310.0,0.03972]
[1753615439478,0.21066635,118320.0,118310.0,0.03972]
[1753615441449,0.22652424,118320.0,118310.0,0.03972]
[1753615442887,0.22652424,118320.0,118310.0,0.0181]
[1753615443109,0.2354608,118320.0,118310.0,0.003]
[1753615444249,0.22951424,118320.0,118310.0,0.003]
[1753615445901,0.22652424,118320.0,118310.0,0.003]
[1753615446613,0.22951424,118320.0,118310.0,0.003]
[1753615446838,0.22950896,118320.0,118310.0,0.003]
[1753615448425,0.22651896,118320.0,118310.0,0.003]
[1753615453638,0.21819725,118320.0,118310.0,0.003]
[1753615454091,0.21819725,118320.0,118310.0,0.0187]
[1753615454347,0.21819725,118320.0,118310.0,0.0344]
[1753615454804,0.21819725,118320.0,118310.0,0.0187]
[1753615455712,0.21819457,118320.0,118310.0,0.0187]
[1753615457319,0.22670159,118320.0,118310.0,0.0187]
[1753615457501,0.21819457,118320.0,118310.0,0.0187]
[1753615457943,0.21819457,118320.0,118310.0,0.03954]
[1753615458426,0.21819457,118320.0,118310.0,0.06251]
[1753615458647,0.34935457,118320.0,118310.0,0.06251]
[1753615465968,0.21819457,118320.0,118310.0,0.06251]
[1753615466208,0.33346464,118320.0,118310.0,0.06251]
[1753615477791,0.33346464,118320.0,118310.0,0.03954]
[1753615478761,0.33346464,118320.0,118310.0,0.06209]
[1753615485600,0.33346464,118320.0,118310.0,0.03954]
[1753615490755,0.33346464,118320.0,118310.0,0.06209]
[1753615498607,0.20234464,118320.0,118310.0,0.06209]
[1753615498904,0.33326464,118320.0,118310.0,0.06209]
[1753615499104,0.30840464,118320.0,118310.0,0.06209]
[1753615506623,0.17752464,118320.0,118310.0,0.06209]
[1753615506845,0.17752464,118320.0,118310.0,0.1465673]
[1753615509292,0.17752464,118320.0,118310.0,0.14868039]
[1753615526757,0.20080464,118320.0,118310.0,0.14868039]
[1753615550530,0.20278464,118320.0,118310.0,0.1031773]
[1753615550768,0.20278464,118320.0,118310.0,0.003]
[1753615551501,0.23498464,118320.0,118310.0,0.003]
[1753615551738,0.21838464,118320.0,118310.0,0.003]
[1753615551948,0.20582464,118320.0,118310.0,0.003]
[1753615552173,0.20582464,118320.0,118310.0,0.13428]
[1753615554698,0.20278464,118320.0,118310.0,0.13428]
[1753615570936,0.20278464,118320.0,118310.0,0.15251]
[1753615581422,0.20278464,118320.0,118310.0,0.15457]
[1753615583019,0.20278464,118320.0,118310.0,0.17825]
[1753615584029,0.20278464,118320.0,118310.0,0.19455]
[1753615587391,0.20080464,118320.0,118310.0,0.19455]
[1753615589735,0.20080464,118320.0,118310.0,0.19421317]
[1753615597213,0.17752464,118320.0,118310.0,0.19421317]
[1753615600259,0.17752464,118320.0,118310.0,0.44773788]
[1753615600260,0.18597608,118320.0,118310.0,0.44773788]
[1753615600493,0.18597608,118320.0,118310.0,0.46464254]
[1753615600700,0.18597608,118320.0,118310.0,0.47309476]
[1753615600903,0.01694295,118320.0,118310.0,0.47309462]
[1753615601102,0.01694223,118320.0,118310.0,0.48154649]
[1753615601346,0.03384511,118320.0,118310.0,0.48154649]
[1753615601578,0.0253936,118320.0,118310.0,0.48154649]
[1753615601809,0.03384511,118320.0,118310.0,0.48154649]
[1753615604589,0.04229669,118320.0,118310.0,0.48154649]
[1753615606620,0.02539367,118320.0,118310.0,0.48154649]
[1753615609724,0.01694223,118320.0,118310.0,0.48154649]
[1753615609974,0.0253936,118320.0,118310.0,0.48154649]
[1753615610267,4e-05,118320.0,118310.0,0.82154649]
[1753615611260,0.00849108,118320.0,118310.0,0.82154649]
[1753615611265,0.0169423,118320.0,118310.0,0.82154649]
[1753615612546,0.00849108,118320.0,118310.0,0.82154649]
[1753615612763,0.01694223,118320.0,118310.0,0.82154649]
[1753615614470,0.02539345,118320.0,118310.0,0.82154649]
[1753615616192,0.00849108,118320.0,118310.0,0.82154649]
[1753615616640,0.0169423,118320.0,118310.0,0.82154649]
[1753615617130,0.00849101,118320.0,118310.0,0.82154649]
[1753615617568,0.01694216,118320.0,118310.0,0.82154649]
[1753615617794,0.00849101,118320.0,118310.0,0.82154649]
[1753615618140,0.01694216,118320.0,118310.0,0.82154649]
[1753615619306,0.02539345,118320.0,118310.0,0.82154649]
[1753615619997,0.02539338,118320.0,118310.0,0.82154649]
[1753615620851,0.01694216,118320.0,118310.0,0.82154649]
[1753615623321,0.02539353,118320.0,118310.0,0.82154649]
[1753615623965,0.01694216,118320.0,118310.0,0.82154649]
[1753615624171,0.01694209,118320.0,118310.0,0.82154649]
[1753615624656,0.00849101,118320.0,118310.0,0.82154649]
[1753615625960,0.01694216,118320.0,118310.0,0.82154649]
[1753615626641,0.00849101,118320.0,118310.0,0.82154649]
[1753615627434,0.01694216,118320.0,118310.0,0.82154649]
[1753615627830,0.01694209,118320.0,118310.0,0.82154649]
[1753615628264,0.00849101,118320.0,118310.0,0.82154649]
[1753615630379,4e-05,118320.0,118310.0,0.82154649]
[1753615630594,0.00849101,118320.0,118310.0,0.82154649]
[1753615631867,4e-05,118320.0,118310.0,0.82154649]
[1753615636075,0.00849101,118320.0,118310.0,0.82154649]
[1753615637493,4e-05,118320.0,118310.0,0.82154649]
[1753615639864,0.00849108,118320.0,118310.0,0.82154649]
[1753615640097,0.00849101,118320.0,118310.0,0.82154649]
[1753615640538,0.01694216,118320.0,118310.0,0.82154649]
[1753615640761,0.02539338,118320.0,118310.0,0.82154649]
[1753615641224,0.03384467,118320.0,118310.0,0.82154649]
[1753615641723,0.04229611,118320.0,118310.0,0.82154649]
[1753615641948,0.03384467,118320.0,118310.0,0.82154649]
[1753615642850,0.04229611,118320.0,118310.0,0.82154649]
[1753615644037,0.03384467,118320.0,118310.0,0.82154649]
[1753615644696,0.04229604,118320.0,118310.0,0.82154649]
[1753615645104,0.02539338,118320.0,118310.0,0.82154649]
[1753615645320,0.03384475,118320.0,118310.0,0.82154649]
[1753615650415,0.04229626,118320.0,118310.0,0.82154649]
[1753615650631,0.03384475,118320.0,118310.0,0.82154649]
[1753615651059,0.04229626,118320.0,118310.0,0.82154649]
[1753615651266,0.03384475,118320.0,118310.0,0.82154649]
[1753615651483,0.04229626,118320.0,118310.0,0.82154649]
[1753615651696,0.03384475,118320.0,118310.0,0.82154649]
[1753615652926,0.04229626,118320.0,118310.0,0.82154649]
[1753615654246,0.21132939,118320.0,118310.0,0.82154649]
[1753615654461,0.21133003,118320.0,118310.0,0.82154656]
[1753615655988,0.0422969,118320.0,118310.0,0.82154656]
[1753615656235,0.0422969,118320.0,118310.0,0.82999843]
[1753615657803,0.03384525,118320.0,118310.0,0.82999843]
[1753615658029,0.04229683,118320.0,118310.0,0.82999843]
[1753615658255,0.04229733,118320.0,118310.0,0.82999843]
[1753615658450,0.21133046,118320.0,118310.0,0.82154656]
[1753615658978,0.0253941,118320.0,118310.0,0.82154656]
[1753615659204,0.0253941,118320.0,118310.0,0.82999843]
[1753615659787,0.0253941,118320.0,118310.0,0.82154656]
[1753615660167,0.0253941,118320.0,118310.0,0.82999843]
[1753615660368,0.0253941,118320.0,118310.0,0.82154656]
[1753615660691,0.0253941,118320.0,118310.0,0.82999843]
[1753615661069,0.01694259,118320.0,118310.0,0.82999843]
[1753615661282,0.01694223,118320.0,118310.0,0.82999843]
[1753615661504,0.03384504,118320.0,118310.0,0.82999843]
[1753615662878,0.0253936,118320.0,118310.0,0.82999843]
[1753615664052,0.03384504,118320.0,118310.0,0.82999843]
[1753615664295,0.03384504,118320.0,118310.0,0.82154656]
[1753615664783,0.0253936,118320.0,118310.0,0.82999843]
[1753615666551,0.01694223,118320.0,118310.0,0.82999843]
[1753615666810,0.02539352,118320.0,118310.0,0.82999843]
[1753615667326,0.03384489,118320.0,118310.0,0.82999843]
[1753615667580,0.02539352,118320.0,118310.0,0.82999843]
[1753615668305,0.01694223,118320.0,118310.0,0.82999843]
[1753615669011,0.01694216,118320.0,118310.0,0.82999843]
[1753615669435,0.01694209,118320.0,118310.0,0.82999843]
[1753615669638,0.02539331,118320.0,118310.0,0.82999843]
[1753615670244,0.01694209,118320.0,118310.0,0.82999843]
[1753615670940,0.00849101,118320.0,118310.0,0.82999843]
[1753615671364,0.01694216,118320.0,118310.0,0.82999843]
[1753615672033,0.00849108,118320.0,118310.0,0.82999843]
[1753615672476,4e-05,118320.0,118310.0,0.82999843]
[1753615672690,4e-05,118320.0,118310.0,2.33378843]
[1753615674081,4e-05,118320.0,118310.0,2.33112526]
[1753615674341,0.01690566,118300.0,118290.0,0.03355806]
[1753615674550,0.21135736,118300.0,118290.0,0.24839536]
[1753615674774,0.21135736,118300.0,118290.0,0.2148373]
[1753615675004,0.21135736,118300.0,118290.0,0.5548373]
[1753615675459,0.21135736,118300.0,118290.0,0.4244773]
[1753615675699,0.22775736,118300.0,118290.0,0.4244773]
[1753615675918,0.22775736,118300.0,118290.0,0.5548373]
[1753615676402,0.22775736,118300.0,118290.0,0.56333939]
[1753615677292,0.22775736,118300.0,118290.0,0.58898502]
[1753615677749,0.22875736,118300.0,118290.0,0.58898502]
[1753615681010,0.21235736,118300.0,118290.0,0.58898502]
[1753615682072,0.21235736,118300.0,118290.0,0.75806101]
[1753615682750,0.21235736,118300.0,118290.0,0.76102101]
[1753615683220,0.21235736,118300.0,118290.0,0.63066101]
[1753615683432,0.21235736,118300.0,118290.0,0.59194502]
[1753615683871,0.21235736,118300.0,118290.0,0.76102101]
[1753615684100,0.21235736,118300.0,118290.0,0.77792852]
[1753615685282,0.21235736,118300.0,118290.0,0.77993852]
[1753615685809,0.21235736,118300.0,118290.0,0.67409852]
[1753615686042,0.21235736,118300.0,118290.0,0.80441852]
[1753615686649,0.20390464,118300.0,118290.0,0.7959648]
[1753615687463,0.20390464,118300.0,118290.0,0.76181708]
[1753615689094,0.20390464,118300.0,118290.0,0.5842873]
[1753615689278,0.1954517,118300.0,118290.0,0.5842873]
[1753615689903,0.1954517,118300.0,118290.0,0.5597673]
[1753615690118,0.1954517,118300.0,118290.0,0.5568073]
[1753615690546,0.1954517,118300.0,118290.0,0.5597673]
[1753615691617,0.1954517,118300.0,118290.0,0.58563347]
[1753615691832,0.1954517,118300.0,118290.0,0.59400075]
[1753615692533,0.1983717,118300.0,118290.0,0.45871075]
[1753615692757,0.2306717,118300.0,118290.0,0.11871075]
[1753615693000,0.2306717,118300.0,118290.0,0.24903075]
[1753615695368,0.2277517,118300.0,118290.0,0.11871075]
[1753615695617,0.2277517,118300.0,118290.0,0.24903075]
[1753615695864,0.2306717,118300.0,118290.0,0.11871075]
[1753615696102,0.2306717,118300.0,118290.0,0.24899075]
[1753615697036,0.2306717,118300.0,118290.0,0.11871075]
[1753615697320,0.2306717,118300.0,118290.0,0.24899075]
[1753615697737,0.2277517,118300.0,118290.0,0.24899075]
[1753615697961,0.2277517,118300.0,118290.0,0.22312458]
[1753615700190,0.2306717,118300.0,118290.0,0.22312458]
[1753615702881,0.2306717,118300.0,118290.0,0.09284458]
[1753615703119,0.2306717,118300.0,118290.0,0.22312458]
[1753615703875,0.2277517,118300.0,118290.0,0.22312458]
[1753615704847,0.2277517,118300.0,118290.0,0.09284458]
[1753615705090,0.2277517,118300.0,118290.0,0.22312458]
[1753615705784,0.2277517,118300.0,118290.0,0.09284458]
[1753615706014,0.2277517,118300.0,118290.0,0.22312458]
[1753615709312,0.2111517,118300.0,118290.0,0.22312458]
[1753615709545,0.1954517,118300.0,118290.0,0.22312458]
[1753615710276,0.2105517,118300.0,118290.0,0.22312458]
[1753615711398,0.2105517,118300.0,118290.0,0.22308458]
[1753615712484,0.1954517,118300.0,118290.0,0.22308458]
[1753615713003,0.1954517,118300.0,118290.0,0.22612458]
[1753615713458,0.1954517,118300.0,118290.0,0.09588458]
[1753615713684,0.1954517,118300.0,118290.0,0.22612458]
[1753615714860,0.1954517,118300.0,118290.0,0.22828458]
[1753615717909,0.1954517,118300.0,118290.0,0.25265458]
[1753615721617,0.1954517,118300.0,118290.0,0.25261458]
[1753615724894,0.1954517,118300.0,118290.0,0.12241458]
[1753615725105,0.1954517,118300.0,118290.0,0.25261458]
[1753615736288,0.1954517,118300.0,118290.0,0.25257458]
[1753615738647,0.1954517,118300.0,118290.0,0.26877458]
[1753615741363,0.1954517,118300.0,118290.0,0.26873458]
[1753615743337,0.1954517,118300.0,118290.0,0.09284458]
[1753615743584,0.1954517,118300.0,118290.0,0.22296458]
[1753615745535,0.1954517,118300.0,118290.0,0.22815458]
[1753615745979,0.1954517,118300.0,118290.0,0.25293458]
[1753615746190,0.1954517,118300.0,118290.0,0.22815458]
[1753615746398,0.1954517,118300.0,118290.0,0.25293458]
[1753615752349,0.1954517,118300.0,118290.0,0.2445673]
[1753615754190,0.1954517,118300.0,118290.0,0.25323946]
[1753615761572,0.1954517,118300.0,118290.0,0.26903946]
[1753615767110,0.1954517,118300.0,118290.0,0.28413946]
[1753615767818,0.1933417,118300.0,118290.0,0.28413946]
[1753615770610,0.18696765,118300.0,118290.0,0.46166924]
[1753615770857,0.18696765,118300.0,118290.0,0.82702976]
[1753615770858,0.001,118300.0,118290.0,0.82702976]
[1753615771101,0.01790509,118300.0,118290.0,0.82702976]
[1753615771296,0.02635788,118300.0,118290.0,0.82702976]
[1753615771433,0.01790509,118300.0,118290.0,0.82702976]
[1753615771866,0.02635788,118300.0,118290.0,0.82702976]
[1753615773112,0.03481082,118300.0,118290.0,0.82702976]
[1753615773542,0.02635788,118300.0,118290.0,0.82702976]
[1753615773794,0.03481082,118300.0,118290.0,0.82702976]
[1753615779178,0.04326383,118300.0,118290.0,0.82702976]
[1753615779416,0.20387309,118300.0,118290.0,0.81857647]
[1753615779687,0.20387309,118300.0,118290.0,0.82702991]
[1753615782619,0.20387309,118300.0,118290.0,0.83548328]
[1753615783805,0.20387309,118300.0,118290.0,0.81012296]
[1753615784014,0.19542044,118300.0,118290.0,0.81857661]
[1753615784223,0.19542044,118300.0,118290.0,0.82703019]
[1753615784437,0.17851471,118300.0,118290.0,0.62413946]
[1753615784638,0.17851471,118300.0,118290.0,0.79321545]
[1753615784862,0.17851471,118300.0,118290.0,0.80166924]
[1753615785395,0.17851471,118300.0,118290.0,0.81012296]
[1753615786716,0.1700617,118300.0,118290.0,0.81012296]
[1753615792938,0.19542008,118300.0,118290.0,0.81857654]
[1753615793153,0.19542008,118300.0,118290.0,0.82703005]
[1753615796321,0.19542008,118300.0,118290.0,0.83548349]
[1753615801567,0.19542008,118300.0,118290.0,0.82703005]
[1753615802123,0.19542008,118300.0,118290.0,0.83548342]
[1753615802328,0.20387316,118300.0,118290.0,0.83548342]